Cogmind - Beta 14 @@@ ROGUE MODE // 2024.09.08 @ 14:18:52 Player: rice Result: Destroyed by G-47 Trooper with Particle Gun Performance ------------- Evolutions (2) 1000 Regions Visited (3) 600 Robots Destroyed (54) 270 Value Destroyed (1489) 1489 Prototype IDs (2) 40 Alien Tech Used (0) 0 Bonus (0) 0 TOTAL SCORE: 3399 Bonus ------- None Cogmind --------- Core Integrity 0/550 Matter 110/300 Energy 82/265 System Corruption 0% Temperature Warm (107) Movement Treading (170) Location -8/Materials Parts ------- > --- POWER (1) -------- Improved Ion Engine > --- PROPULSION (3) --- Armored Treads Armored Treads Armored Treads > --- UTILITY (5) ------ Large Storage Unit Signal Interpreter Terrain Scan Processor Advanced Targeting Computer Improved Power Shielding > --- WEAPON (2) ------- Heavy EM Shotgun Heavy EM Shotgun > --- INVENTORY (15) --- Light Ion Engine Improved EM Shotgun Improved EM Shotgun Heavy EM Shotgun Mining Claw Peak State ------------ > --- POWER ------------ Light Nuclear Core > --- PROPULSION ------- Armored Treads Armored Treads Armored Treads > --- UTILITY ---------- Large Storage Unit Signal Interpreter Terrain Scan Processor Advanced Targeting Computer Improved Power Shielding > --- WEAPON ----------- Heavy EM Shotgun Heavy EM Shotgun > --- INVENTORY -------- Light Ion Engine Improved EM Shotgun Improved EM Shotgun Heavy EM Shotgun Mining Claw [Rating: 31] Favorites ----------- Power Light Ion Engine Engine Light Ion Engine Power Core Light Nuclear Core Propulsion Light Treads Treads Light Treads Leg Aluminum Leg Flight Unit Flight Unit Utility Large Storage Unit Device Sensor Array Storage Large Storage Unit Processor Signal Interpreter Protection Improved Power Shielding Weapon Assault Rifle Energy Gun Spread Laser Ballistic Gun Assault Rifle Ballistic Cannon Flak Cannon Launcher Rocket Launcher Slashing Weapon Mining Claw Build | -11 -10 -9 -8 ------- Run | Yrd Mat Mat Mat Slots Evolved 4 | . . 2 2 Power . | . . . . Propulsion 1 | . . . 1 Utility 3 | . . 2 1 Weapon . | . . . . Parts Attached 76 | 7 12 23 34 Power 10 | 2 1 1 6 Engine 8 | 2 1 1 4 Core 2 | . . . 2 Reactor . | . . . . Propulsion 23 | 2 5 6 10 Treads 18 | 2 2 6 8 Leg 2 | . . . 2 Wheel . | . . . . Hover . | . . . . Flight 3 | . 3 . . Utility 13 | . 4 5 4 Device 4 | . . 2 2 Storage 2 | . 2 . . Processor 5 | . 1 3 1 Hackware . | . . . . Protection 2 | . 1 . 1 Artifact . | . . . . Weapon 30 | 3 2 11 14 Energy Gun 9 | . . 3 6 Energy Cannon . | . . . . Ballistic Gun 9 | 3 1 5 . Ballistic Cannon 4 | . . . 4 Launcher 7 | . . 3 4 Special Weapon . | . . . . Impact Weapon . | . . . . Slashing Weapon 1 | . 1 . . Piercing Weapon . | . . . . Special Melee Weapon . | . . . . Unidentified Prototypes 2 | . . 1 1 Parts Lost 13 | . . . 13 Power 2 | . . . 2 Propulsion 5 | . . . 5 Utility 2 | . . . 2 Weapon 4 | . . . 4 Highest Loss Streak 11 | . . . 11 To Critical Strikes . | . . . . Average Slot Usage (%) 92 | . 90 97 88 Engine 10 | . 14 11 6 Treads 21 | . 20 21 21 Flight 1 | . 7 . . Device 9 | . . 13 11 Storage 9 | . 6 11 9 Processor 16 | . 11 17 20 Energy Gun 6 | . . 6 11 Ballistic Gun 12 | . 24 14 . Ballistic Cannon 1 | . . . 3 Peak Build Rating 31 | 5 7 14 31 Average Rating 11 | 3 6 11 17 On Entrance 6 | . 5 7 14 Naked Turns . | . . . . Heaviest Build 36 | 9 27 32 36 Greatest Support 60 | 40 40 40 60 Greatest Overweight (x) 10 | . 2 . 10 Average Overweight (x) . | . . . . Largest Inventory Capacity 15 | 5 15 15 15 Average Capacity 13 | 5 9 15 15 Most Carried 13 | 2 5 13 11 Average Carried 7 | 1 3 9 7 Final Capacity 15 | 5 15 15 15 Final Carried 11 | 2 3 11 5 Class Distribution -------------------- 66% | Mutant 18% | Scavenger-Mutant 14% | Skirmisher Dominant Class ---------------- Mutant | -10/Materials Mutant | -9/Materials Skirmisher | -8/Materials Resources | -11 -10 -9 -8 ----------- Run | Yrd Mat Mat Mat Matter Collected 1319 | 211 161 607 340 Remotely . | . . . . Salvage Created 1724 | . 161 741 822 Parts 92 | . 14 45 33 Haulers Intercepted 3 | . . 2 1 Recyclers Shooed 2 | . 1 . 1 Parts Field Recycled . | . . . . Retrieved Matter . | . . . . Parts Self-Destructed . | . . . . Prevented . | . . . . Kills | -11 -10 -9 -8 ------- Run | Yrd Mat Mat Mat Combat Hostiles Destroyed 38 | . 7 15 16 Guns 25 | . 7 9 9 Cannons 1 | . . . 1 AOE 11 | . . 6 5 Classes Destroyed 9 | . 3 5 1 Builder 1 | . . 1 . Hauler 3 | . . 2 1 Recycler 5 | . . 2 3 Operator 2 | . 1 . 1 Watcher 5 | . . 3 2 Swarmer 11 | . 5 6 . Grunt 19 | . 2 6 11 Sentry 7 | . . 3 4 Hunter 1 | . . . 1 Best Kill Streak 8 | . 3 8 6 Combat Bots Only 6 | . 3 6 4 Max Kills in Single Turn 3 | . 1 3 2 Gunslinging . | . . . . Exploded 3 | . . 3 2 Melee . | . . . . Uniques/NPCs Destroyed . | . . . . Combat | -11 -10 -9 -8 -------- Run | Yrd Mat Mat Mat Hostile Shots Fired 257 | . 26 67 164 Missed 65 | . 5 21 39 Damage Taken 2795 | . 190 525 2080 Core 649 | . 25 74 550 Absorbed by Shields . | . . . . Regen/Repaired (Parts) 204 | . 26 142 36 Core Remaining (%) 90 | 100 90 81 . Volleys Fired 121 | . 18 44 59 Largest 2 | . 2 2 2 Hottest 110 | . 40 110 110 Shots Fired 212 | . 36 76 100 Gun 173 | . 36 72 65 Cannon 25 | . . . 25 Launcher 14 | . . 4 10 Special . | . . . . Kinetic 123 | . 36 62 25 Thermal 48 | . . 3 45 Explosive 14 | . . 4 10 Electromagnetic 27 | . . 7 20 Robot Hit Streak 21 | . 6 14 21 Robot Miss Streak 6 | . 3 3 6 Penetration Max . | . . . . Secondary Targets 2 | . . 1 1 Max Gunslinging Chain 1 | . . 1 1 Shots Hit Robots 137 | . 20 42 75 Core Hits 134 | . 9 34 91 Critical Kills 1 | . . 1 . Critical Parts Destroyed . | . . . . Critical Strikes 1 | . . 1 . Destroy 1 | . . 1 . Melee Attacks 7 | . 7 . . Impact . | . . . . Slashing 7 | . 7 . . Piercing . | . . . . Sneak Attacks 1 | . 1 . . Combat Hostiles . | . . . . Follow-up Attacks . | . . . . Damage Inflicted 3287 | . 308 1130 1849 Guns 1675 | . 248 590 837 Cannons 434 | . . . 434 Explosions 1103 | . . 536 567 Melee 60 | . 60 . . Ramming 15 | . . 4 11 Kinetic 1149 | . 248 467 434 Thermal 522 | . . 29 493 Explosive 1103 | . . 536 567 Electromagnetic 438 | . . 94 344 Impact . | . . . . Slashing 60 | . 60 . . Piercing . | . . . . Highest Corruption . | . . . . Average Corruption . | . . . . Corruption Purged . | . . . . Corruption Blocked . | . . . . Overload Shots . | . . . . Overflow Damage 87 | . 50 23 14 Projectiles 6 | . . . 6 Explosions 31 | . . 23 8 Melee 50 | . 50 . . Knockbacks 10 | . . . 10 Impact . | . . . . Kinetic 10 | . . . 10 Secondary . | . . . . Self-Inflicted Damage 69 | . . 3 66 Shots 4 | . . 1 3 Rammed 3 | . . 2 1 Targets Rammed 3 | . . 2 1 Kicked . | . . . . Crushed . | . . . . Highest Temperature 434 | . . 48 434 Average Temperature 108 | . . 20 119 Received Heat Transfer 1395 | . 42 201 1152 Effects 6 | . . . 6 Energy Bleed 1 | . . . 1 Interference 4 | . . . 4 Damage (minor) 1 | . . . 1 Siege Activations . | . . . . Robots Corrupted 1 | . . . 1 Combat Hostiles 1 | . . . 1 Parts Fried 1 | . . . 1 Impact Corruptions . | . . . . Robots Melted . | . . . . Combat Hostiles . | . . . . Parts Melted . | . . . . Heat Transferred 650 | . . 35 615 Parts Sabotaged . | . . . . Parts Stolen . | . . . . Parts Stripped . | . . . . Power Chain Reactions 1 | . . 1 . Alert | -11 -10 -9 -8 ------- Run | Yrd Mat Mat Mat Peak Influence 331 | . 154 192 331 Initial 54 | . . 31 54 Average 94 | . 82 75 141 Maximum Alert Level 1 | . . . 1 Low Security (%) 90 | 100 100 100 66 Level 1 9 | . . . 33 Level 2 . | . . . . Level 3 . | . . . . Level 4 . | . . . . Level 5 . | . . . . High Security . | . . . . Max Security . | . . . . Squads Dispatched 6 | . 2 1 3 Investigation 2 | . 1 1 . Extermination . | . . . . Reinforcement 3 | . 1 . 2 Assault . | . . . . Garrison 1 | . . . 1 Intercept . | . . . . Searches Triggered . | . . . . Construction Impeded 1 | . . . 1 Haulers Reinforced . | . . . . Active Scanning Responses . | . . . . Cargo Convoy Interrupts . | . . . . Stealth | -11 -10 -9 -8 --------- Run | Yrd Mat Mat Mat Distress Signals 6 | . . 1 5 Communications Jammed . | . . . . Distress Signals . | . . . . Times Spotted 49 | . 8 20 21 Peak Tracking Total 7 | . 3 4 7 Tactical Retreats 4 | . 1 1 2 Traps | -11 -10 -9 -8 ------- Run | Yrd Mat Mat Mat Traps Triggered 1 | . 1 . . Indirectly . | . . . . Trap Hack Attempts . | . . . . Triggered . | . . . . Disarmed . | . . . . Reprogrammed . | . . . . Reused . | . . . . Traps Extracted . | . . . . Installed . | . . . . Triggered . | . . . . Machines | -11 -10 -9 -8 ---------- Run | Yrd Mat Mat Mat Machines Disabled 2 | . . . 2 Max in Single Turn 1 | . . . 1 Machines Repaired . | . . . . Machines Dismantled . | . . . . Machines Sabotaged . | . . . . Overloaded Fab Kills . | . . . . Hacking | -11 -10 -9 -8 --------- Run | Yrd Mat Mat Mat Machines Accessed 13 | . 4 5 4 Terminals 8 | . 2 4 2 Fabricators . | . . . . Repair Stations 3 | . 1 1 1 Recycling Units 2 | . 1 . 1 Scanalyzers . | . . . . Garrison Access . | . . . . Total Hacks 39 | . 8 17 14 Successful 25 | . 6 10 9 Failed 14 | . 2 7 5 Catastrophic 3 | . . 2 1 Database Lockouts . | . . . . Manual 15 | . 3 8 4 Terminals 23 | . 4 11 8 Fabricators . | . . . . Repair Stations 11 | . 2 6 3 Recycling Units 5 | . 2 . 3 Scanalyzers . | . . . . Garrison Access . | . . . . Terminal Hacks 13 | . 2 6 5 Record 2 | . . 1 1 Part Schematic 1 | . . 1 . Alert Level 2 | . 1 1 . Unreport Threat 3 | . . 2 1 Locate Traps 1 | . . . 1 Dispatch Records 1 | . . . 1 Hauler Manifests 3 | . 1 1 1 Fabricator Hacks . | . . . . Repair Station Hacks 8 | . 2 4 2 Scan Component 4 | . 1 2 1 Repair 4 | . 1 2 1 Recycling Unit Hacks 4 | . 2 . 2 Report Inventory 2 | . 1 . 1 Retrieve Components 2 | . 1 . 1 Scanalyzer . | . . . . Garrison Access Hacks . | . . . . Unauthorized Hacks . | . . . . Terminals . | . . . . Fabricators . | . . . . Repair Stations . | . . . . Recycling Units . | . . . . Scanalyzers . | . . . . Garrison Access . | . . . . Data Cores Recovered . | . . . . Used . | . . . . Hacking Detections 9 | . 2 4 3 Full Trace Events 2 | . . 1 1 Feedback Events . | . . . . Feedback Blocked . | . . . . Robot Schematics Acquired . | . . . . Robots Built . | . . . . Authchips . | . . . . Time . | . . . . Total Robot Build Rating . | . . . . Part Schematics Acquired 1 | . . 1 . Parts Built . | . . . . Authchips . | . . . . Time . | . . . . Total Part Build Rating . | . . . . Parts Repaired 4 | . 1 2 1 Time 135 | . 26 58 51 Parts Recycled . | . . . . Recycled Matter . | . . . . Retrieved Matter . | . . . . Retrieved Components 5 | . 3 . 2 Parts Scanalyzed . | . . . . Part Schematics Acquired . | . . . . Parts Damaged . | . . . . Bothacking | -11 -10 -9 -8 ------------ Run | Yrd Mat Mat Mat Used RIF Installer . | . . . . Robots Hacked . | . . . . Non-combat . | . . . . Combat . | . . . . Robot Hacks Applied . | . . . . Relay Couplers Released . | . . . . Fabnet Peak Effective % . | . . . . Robots Rewired . | . . . . Allies Hacked . | . . . . Hacks Repelled . | . . . . Allies | -11 -10 -9 -8 -------- Run | Yrd Mat Mat Mat Total Allies . | . . . . Largest Group . | . . . . Highest-Rated Group . | . . . . Highest-Rated Ally . | . . . . Total Orders . | . . . . Ally Attacks . | . . . . Total Damage . | . . . . Kills . | . . . . Allies Corrupted . | . . . . Allies Melted . | . . . . Intel | -11 -10 -9 -8 ------- Run | Yrd Mat Mat Mat Robot Analysis Total . | . . . . Derelict Logs Recovered . | . . . . Drone Launches . | . . . . Drone Recoveries . | . . . . Exploration | -11 -10 -9 -8 ------------- Run | Yrd Mat Mat Mat Turns Passed 3181 | 90 752 1409 930 Spaces Moved 1483 | 53 517 639 274 Core 24 | 4 . . 20 Treads 1203 | 49 272 639 243 Legs 11 | . . . 11 Wheels . | . . . . Hover . | . . . . Flight 245 | . 245 . . Fastest Speed 37 | 50 37 160 160 Average Speed 148 | 151 114 160 186 Slowest Speed 550 | 160 220 160 550 Overloaded Moves . | . . . . Propulsion Burnouts . | . . . . Robots Hopped . | . . . . Cave-ins Triggered . | . . . . Exploration Rate (%) 28 | 4 48 45 18 Regions Visited 3 Branch Regions . Pre-discovered Areas . | . . . . Known Exits Taken 1 | . . 1 . Unknown Exits Taken 2 | 1 1 . . Scrap Searched . | . . . . Spaces Dug 3 | . 3 . . Terrain Destroyed 114 | . 3 33 78 Melee 3 | . 3 . . Projectile 1 | . . . 1 AOE 110 | . . 33 77 Terrain Rammed . | . . . . Walls Destroyed . | . . . . Machines Disabled . | . . . . Actions | -11 -10 -9 -8 --------- Run | Yrd Mat Mat Mat Total 2207 | 59 621 945 582 Wait 498 | . 61 231 206 Move 1480 | 52 516 638 274 Hop . | . . . . Pick Up 13 | . 3 5 5 Fast Attach 20 | 5 4 3 8 Attach 10 | . . 1 9 Detach . | . . . . Swap 46 | 2 8 19 17 Drop 9 | . 4 2 3 Fire 121 | . 18 44 59 Melee 7 | . 7 . . Ram . | . . . . Kick . | . . . . Crush 3 | . . 2 1 Escape Stasis . | . . . . Rewire . | . . . . Trap . | . . . . Miscellaneous . | . . . . Route ------- -11/Scrapyard -10/Materials (discovered 2 exits: *Mat / [*Min]) -9/Materials (discovered 3 exits: *Mat / *Sto x2) -8/Materials History --------- Turn | Location | Event 40 | -11/Scrapyard | Discovered new exit (range 16) 91 | -11/Scrapyard | Entered Materials 249 | -10/Materials | Discovered new exit (range 11) 354 | -10/Materials | Build established: Mutant 466 | -10/Materials | Repaired Assault Rifle 486 | -10/Materials | Discovered new exit (range 12) 843 | -10/Materials | Entered another Materials area 843 | -9/Materials | Evolved 2 slots: Utility x2 1345 | -9/Materials | Repaired Autogun 1372 | -9/Materials | Repaired Lgt. Treads 1513 | -9/Materials | Discovered new exit (range 9) 1721 | -9/Materials | Identified exit to Storage 1747 | -9/Materials | Build established: Scavenger-Mutant 2032 | -9/Materials | Discovered exit to Storage (range 14) 2207 | -9/Materials | Discovered new exit (range 16) 2247 | -9/Materials | Identified exit to Materials 2252 | -9/Materials | Entered another Materials area 2252 | -8/Materials | Evolved 2 slots: Propulsion x1, Utility x1 2454 | -8/Materials | Repaired Imp. EM Shotgun 2750 | -8/Materials | Build established: Skirmisher 2866 | -8/Materials | Core integrity fell below 50% 2897 | -8/Materials | Lost 11 parts (1p5n2u3w) 2965 | -8/Materials | Core integrity fell below 20% 3129 | -8/Materials | Build established: Mutant 3152 | -8/Materials | Garrison activated, responded to threat 3182 | -8/Materials | Destroyed by G-47 Trooper with Particle Gun Last Messages --------------- 03113_ Acquired Hvy. EM Shotgun. 03116_ U-05 Engineer builds a Wall. 03119_ K-01 Serf cleans the Matter Pump. 03132_ U-05 Engineer lays Concrete. 03152_ Y-45 Defender calls for garrison reinforcements. 03152_ ALERT: Activating Garrison Access M001. 03155_ Y-45 Defender destroyed. 03155_ Door malfunctions. 03158_ U-05 Engineer repairs door. 03162_ Acquired Imp. Ion Engine. 03163_ G-47 Trooper shuts down. 03166_ G-47 Trooper destroyed. 03166_ Door malfunctions. 03167_ U-05 Engineer repairs door. 03170_ K-01 Serf collects debris. 03176_ Y-45 Defender system terminally corrupted. 03176_ Heat Sink fried. 03181_ K-01 Serf collects debris. Map ----- +----------------------------------------------------+ | ???????????????????#??"?? ?#??##?############?#### | | ????????????????????#"?"? ##?##### ! #??###? | | ??????#######+#######"?? ??#??#### """ #???#?# | | ??????# # ? ?#####?## "Y" [ ##?#?## | | ??????# """ #? ?##?##### = ####### | | ??????# ""R" =! # ? ?#####?# ="""" ####### | | ??????# "" " =!! ###?##?##?#### """" ####### | | ??????# ! #########?#### """" #?##### | | ??????# ########??### ####### | | ??????############+#############T#####+########### | | ???????????# + ## # | | ?????#?#?#?# ##### ## # | | ???????????# ######## # | | ???##??#??## # # ##############+#### | | ??#?#??#?## "" #% # ############ | | ??????#???## "" # # ############ """"" | | ?#?????##??#! # # ########## """"" | | ??????#??### # # ########## """"" | | ??#??#????## # # # ########## | | ???##############+### # ###########] | | ## #% # ##### " " | | g!= # "##### "R" | | ##%! # """ T##### """ | | ?############### ##= # % """ "############ | | ?????? ????#?### [## u[= #^^^# """ #####?#?#### | | ? ? ?"? ?????##[] ## %%@ # # ############ | | ?? ???"? ??#??## #####/###% ################### | | ??????"?? ??#?## ![k=% ###### ?#### | | ????????? ???## ! u ###### """ ##### | | ???????##?#???## # """?##### | | ??????#????#???######## # ?"" "" ## | | ???????#???#?###? # # ? ?G"## | | ??????#???#??#??# ## # # " ? "" ## | | ???????? ?? ? ???###### """ """ # "T" #?### | | ?????????????? # ?? ? # """ """ # ??""" ##### | | ?????????"??????? ? ? #] """ """ #?????????###? | | ?????????????? #?? ? # ? ???#????????#? | | ?????????????? ???? ??+ ??????????????? | | ?????????????????? ???# ? ????????????????? | | ???????????????#???? ? ? ?? ???????????????? | | ?????????????????????## ??????????????????????? | | ??????????????????????? ??????????????????????? | | ??????????????????????? ??????????????????????? | | ??????????????????????? % ??????????????????????? | | ??????????????????????? ???????????????????????? | | ?????????????????????????????????????????????????? | | ?????????????????????????????????????????????????? | | ?????????????????????????????????????????????????? | | ?????????????????????????????????????????????????? | | ?????????????????????????????????????????????????? | +----------------------------------------------------+ Best States ------------- Heat Dissipation 53 Energy Generation 14 Energy Capacity 265 Matter Stores 300 Matter Capacity 300 Sight Range 16 Robot Scan Range 14 Terrain Scan Range 16 Terrain Scan Density 85 Power Shielding 66 Evasion (%) 62 Targeting Accuracy 8 Recoil Reduction 3 Item Schematics ----------------- Autogun | -9/Materials | Hacked Robot Schematics ------------------ None Fabricated ------------ Nothing Alien Tech Used ----------------- None Achievements -------------- None Challenges ------------ None Game ------ Seed TowerThermalGravjet Manual? 0 Play Time 00:33:04 Cumulative 18.4 hours Start 2024.09.08 @ 13:46:58 End 2024.09.08 @ 14:18:52 Sessions 1 Manual Loads 0 Difficulty Rogue Special Mode None Game No. 40 Rogue 40 Adventurer 0 Explorer 0 Win Type - Total 0 Types 0/0/0/0/0/0/0/0/0 Lore% 5 Gallery% 22 Achievement% 19 Wizard Run 0 Options --------- Layout 1 ASCII 0 Keyboard 1 Movement Numpad Keybinds 0 Fullscreen 1 Font 24/Smallcaps Map View 50x35 Zoom Use 0% Tactical HUD 1 Map Filters NONE Filters NONE Steam 1 RUN: f4b007ea-a3b8-4e74-be09-62b281ec4e51